[Event "AUT-ch U16-Open 2025"]
[Site "Fuerstenfeld"]
[Date "2025.04.15"]
[Round "5.8"]
[White "Onipko, Mark"]
[Black "Maymo, Gazwan"]
[Result "1-0"]
[Annotator "NA RC"]
[ECO "C54"]
[WhiteElo "1979"]
[BlackElo "1789"]
[PlyCount "77"]
[EventDate "2025.04.12"]
[EventType "swiss"]
[EventCountry "AUT"]
[SourceTitle "playchess.com"]
[Source "ChessBase"]
[SourceQuality "1"]
[TimeControl "5400+30"]

1. e4 {[%emt 0:00:03]} e5 {[%emt 0:00:20]} 2. Nf3 {[%emt 0:00:05]} Nc6 {[%emt 0:00:35]} 3. Bc4 {[%emt 0:00:08]} Bc5 {[%emt 0:00:47]} 4. O-O {[%emt 0:00:31]} Nf6 {[%emt 0:00:56]} 5. d3 {[%emt 0:01:44]} d6 {[%emt 0:01:24]} 6. c3 {[%emt 0:00:42]} a6 {[%emt 0:01:25]} 7. b4 {[%emt 0:01:44]} Ba7 {[%emt 0:00:43]} 8. Bg5 {[%emt 0:00:49]} h6 {[%emt 0:00:13]} 9. Bh4 {[%emt 0:00:16]} Bg4 {[%emt 0:06:10]} 10. h3 {[%emt 0:04:55]} Be6 {[%emt 0:00:40]} 11. Nbd2 {[%emt 0:03:43]} g5 {[%emt 0:03:20]} 12. Bxe6 {[%emt 0:04:18]} fxe6 {[%emt 0:02:04]} 13. Bg3 {[%emt 0:00:17]} Nh5 {[%emt 0:09:28]} 14. Kh1 {[%emt 0:03:35]} Qf6 {[%emt 0:08:41]} 15. Nc4 {[%emt 0:13:16]} Rf8 {[%emt 0:12:59]} 16. Nh2 {[%emt 0:13:29]} Qg6 {[%emt 0:07:23]} 17. Na5 {[%emt 0:08:32]} Nxa5 {[%emt 0:03:12]} 18. bxa5 {[%emt 0:00:27]} Nf4 {[%emt 0:03:11]} 19. Rb1 {[%emt 0:05:20]} b6 {[%emt 0:03:58]} 20. axb6 {[%emt 0:02:11]} Bxb6 {[%emt 0:00:11]} 21. Qa4+ {[%emt 0:04:08]} Ke7 {[%emt 0:00:50]} 22. Qc6 {[%emt 0:06:19]} Nxd3 {[%emt 0:06:32]} 23. Rxb6 {[%emt 0:01:34]} cxb6 {[%emt 0:01:53]} 24. Qb7+ {[%emt 0:00:06]} Ke8 {[%emt 0:02:21]} 25. Qxa8+ {[%emt 0:00:35]} Kf7 {[%emt 0:01:55]} 26. Qb7+ {[%emt 0:01:24]} Kg8 {[%emt 0:00:33]} 27. f3 {[%emt 0:01:58]} h5 {[%emt 0:03:00]} 28. Qxa6 {[%emt 0:01:10]} Nc5 {[%emt 0:00:35]} 29. Qxb6 {[%emt 0:03:21]} g4 {[%emt 0:00:21]} 30. Qxd6 {[%emt 0:02:51]} gxh3 {[%emt 0:01:01]} 31. Qxc5 {[%emt 0:01:48]} h4 {[%emt 0:01:59]} 32. gxh3 {[%emt 0:03:47]} hxg3 {[%emt 0:01:26]} 33. Ng4 {[%emt 0:00:25]} Qg5 {[%emt 0:01:08]} 34. Qxe5 {[%emt 0:01:00]} Qh4 {[%emt 0:04:04]} 35. Kg2 {[%emt 0:00:15]} Rd8 {[%emt 0:00:28]} 36. Qxg3 {[%emt 0:00:32]} Qe7 {[%emt 0:00:47]} 37. Kh2 {[%emt 0:01:27]} Qa3 {[%emt 0:01:08]} 38. Ne5+ {[%emt 0:01:30]} Kf8 {[%emt 0:00:52]} 39. Qf4+ {[%emt 0:00:12]} 1-0